[Event "Cape Verde Championship Final 2022"]
[Site "Praia"]
[Date "2022.12.09"]
[Round "3.1"]
[White "Monteiro, Antonio David Cabral"]
[Black "Ortega Amarelle, Mariano"]
[Result "0-1"]
[ECO "B41"]
[WhiteElo "1778"]
[BlackElo "2471"]
[Annotator "TA"]
[PlyCount "48"]
[EventDate "2022.12.04"]
[EventType "tourn"]
[EventCountry "KAP"]
[SourceTitle "playchess.com"]
[Source "ChessBase"]
[SourceQuality "1"]
[TimeControl "40/5400+30:1800+30"]

{[%evp 9,48,25,26,-43,-39,-49,-42,-52,-50,-62,-57,-61,-57,-73,-73,-87,-61,-87,-86,-95,-83,-92,-30,-98,-105,-97,-91,-112,-99,-131,-94,-241,-137,-144,-139,-262,-260,-258,-257,-246,-243]} 1. e4 {[%emt 0:01:50]} c5 {[%emt 0:06:02]} 2. Nf3 {[%emt 0:00:13]} e6 {[%emt 0:00:53]} 3. d4 {[%emt 0:00:29]} cxd4 {[%emt 0:00:07]} 4. Nxd4 {[%emt 0:00:10]} a6 {[%emt 0:00:21]} 5. c4 {[%emt 0:00:59]} Nf6 {[%emt 0:00:17]} 6. e5 {[%emt 0:02:10] B41: Sicilian: Kan Variation: 5 c4.} (6. Nc3 $11) 6... Qa5+ $15 {[%emt 0:00:20]} 7. Nc3 {[%emt 0:01:25]} Qxe5+ {[%emt 0:00:09]} 8. Be2 {[%emt 0:00:35] Black is slightly better.} Nc6 {[%emt 0:01:17]} 9. Nf3 {[%emt 0:01:19]} Qc7 {[%emt 0:00:41] Black is more active.} 10. O-O {[%emt 0:00:21]} Be7 {[%emt 0:03:08]} 11. Re1 {[%emt 0:00:28]} O-O {[%emt 0:00:14] [#]} 12. a3 $146 {[%emt 0:00:43]} ({Predecessor:} 12. h3 Rd8 13. Be3 Rb8 14. Rc1 d5 15. cxd5 Nxd5 16. Nxd5 Rxd5 17. Qc2 Rd8 18. Bd3 {1-0 (33) Bezo,S (2127)-Blaha,B (1987) Trencianske Teplice 2005}) 12... b6 {[%emt 0:03:22]} 13. Bg5 {[%emt 0:00:22]} Bb7 {[%emt 0:01:14]} 14. Rc1 {[%emt 0:00:17]} Rad8 {[%emt 0:17:40]} 15. b4 {[%emt 0:01:14][%cal Oc3d5]} Qb8 {[%emt 0:01:43]} (15... d5 $17 {White must now prevent ...dxc4.} 16. cxd5 Nxd5 17. Bxe7 Qxe7) 16. Qc2 {[%emt 0:01:55]} (16. Be3 $11 {remains equal.}) 16... Ng4 $17 {[%emt 0:08:26][%cal Oc6d4] [#] ...Nd4! is the strong threat.} 17. Bxe7 {[%emt 0:01:36]} Nxe7 {[%emt 0:00:13]} 18. h3 {[%emt 0:00:22]} Nf6 {[%emt 0:00:58]} 19. Ng5 {[%emt 0:01:25]} Qf4 $40 {[%emt 0:04:31][%mdl 128] Black has strong attack.} 20. Bf3 {[%emt 0:01:17] Loses the game.} (20. Nf3 $17 {only move.}) 20... Bxf3 {[%emt 0:01:20] Really sharp!} ({Black should play} 20... d5 $19 21. h4 Qxh4) 21. Nxf3 {[%emt 0:00:07]} Qxc4 {[%emt 0:02:17]} 22. Ne4 {[%emt 0:00:42]} (22. Qa4 $17) 22... Qxc2 $19 {[%emt 0:00:16]} 23. Nxf6+ {[%emt 0:00:23]} gxf6 {[%emt 0:00:08]} 24. Rxc2 {[%emt 0:00:35]} Rc8 {[%emt 0:00:10] Against Rc7.   Weighted Error Value: White=0.36/Black=0.14 (very precise)} 0-1

[Event "Cape Verde Championship Final 2022"]
[Site "Praia"]
[Date "2022.12.09"]
[Round "3.2"]
[White "Teixeira, Gil"]
[Black "Vaz, Jose Carlos"]
[Result "1-0"]
[ECO "D02"]
[WhiteElo "1763"]
[BlackElo "1787"]
[Annotator "NA RC COMBH"]
[PlyCount "119"]
[EventDate "2022.12.04"]
[EventType "tourn"]
[EventCountry "KAP"]
[SourceTitle "playchess.com"]
[Source "ChessBase"]
[SourceQuality "1"]
[TimeControl "40/5400+30:1800+30"]

1. d4 {[%emt 0:01:10]} d5 {[%emt 0:01:36]} 2. Nf3 {[%emt 0:00:19]} Nf6 {[%emt 0:01:32]} 3. Bf4 {[%emt 0:00:41]} c6 {[%emt 0:01:15]} 4. Nbd2 {[%emt 0:00:32]} g6 {[%emt 0:00:28]} 5. c3 {[%emt 0:00:56]} Bg7 {[%emt 0:00:23]} 6. e3 {[%emt 0:00:19]} O-O {[%emt 0:00:10]} 7. Bd3 {[%emt 0:00:16]} Nbd7 {[%emt 0:00:50]} 8. O-O {[%emt 0:00:09]} Nh5 {[%emt 0:01:28]} 9. Bg3 {[%emt 0:00:53]} Nxg3 {[%emt 0:01:12]} 10. hxg3 {[%emt 0:00:39]} e5 {[%emt 0:02:12]} 11. Nh2 {[%emt 0:00:19]} e4 {[%emt 0:01:12]} 12. Be2 {[%emt 0:00:16]} Qg5 {[%emt 0:00:58]} 13. b4 {[%emt 0:00:18]} h5 {[%emt 0:00:36]} 14. a4 {[%emt 0:00:13]} h4 {[%emt 0:02:16]} 15. g4 {[%emt 0:00:57]} f5 {[%emt 0:00:48]} 16. f4 {[%emt 0:05:08]} exf3 {[%emt 0:01:14]} 17. Rxf3 {[%emt 0:01:25]} fxg4 {[%emt 0:00:36]} 18. Nxg4 {[%emt 0:01:01]} Nf6 {[%emt 0:01:30]} 19. Rf4 {[%emt 0:04:01]} Be6 {[%emt 0:00:27]} 20. Nf3 {[%emt 0:00:45]} Qh5 {[%emt 0:01:18]} 21. Nxf6+ {[%emt 0:02:36]} Bxf6 {[%emt 0:01:01]} 22. Nxh4 {[%emt 0:00:49]} Qh6 {[%emt 0:01:00]} 23. Qe1 {[%emt 0:00:37]} Kg7 {[%emt 0:00:32]} 24. Qg3 {[%emt 0:02:30]} Bg5 {[%emt 0:01:48]} 25. Raf1 {[%emt 0:08:59]} Bxf4 {[%emt 0:02:02]} 26. exf4 {[%emt 0:00:23]} Bf5 {[%emt 0:04:05]} 27. Nf3 {[%emt 0:00:47]} Rae8 {[%emt 0:00:45]} 28. Ne5 {[%emt 0:00:17]} Rh8 {[%emt 0:00:25]} 29. Bd3 {[%emt 0:01:24]} Bxd3 {[%emt 0:10:37]} 30. Qxd3 {[%emt 0:00:51]} Ref8 {[%emt 0:00:47]} 31. Qg3 {[%emt 0:00:44]} Qh1+ {[%emt 0:00:19]} 32. Kf2 {[%emt 0:00:16]} Qh4 {[%emt 0:00:47]} 33. Qxh4 {[%emt 0:01:17]} Rxh4 {[%emt 0:00:17]} 34. Kg3 {[%emt 0:00:10]} g5 {[%emt 0:01:20]} 35. f5 {[%emt 0:01:37]} Re4 {[%emt 0:00:16]} 36. Rf3 {[%emt 0:01:00]} Re2 {[%emt 0:00:56]} 37. Ng4 {[%emt 0:01:01]} Kf7 {[%emt 0:01:20]} 38. Ne5+ {[%emt 0:00:44]} Kg7 {[%emt 0:03:03]} 39. Ng4 {[%emt 0:00:40]} Rfe8 {[%emt 0:04:14]} 40. f6+ {[%emt 0:00:25]} Kf7 {[%emt 0:00:12]} 41. Ne5+ {[%emt 0:32:19]} R8xe5 {[%emt 0:31:51]} 42. dxe5 {[%emt 0:00:10]} Rxe5 {[%emt 0:00:16]} 43. Kg4 {[%emt 0:00:04]} b6 {[%emt 0:01:02]} 44. g3 {[%emt 0:04:21]} a5 {[%emt 0:04:20]} 45. bxa5 {[%emt 0:00:39]} bxa5 {[%emt 0:00:09]} 46. Rf5 {[%emt 0:02:32]} Re4+ {[%emt 0:01:22]} 47. Kxg5 {[%emt 0:00:18]} Rxa4 {[%emt 0:00:35]} 48. Rf1 {[%emt 0:02:58]} Rc4 {[%emt 0:01:07]} 49. Rb1 {[%emt 0:00:29]} Re4 {[%emt 0:01:26]} 50. Rb7+ {[%emt 0:00:31]} Kf8 {[%emt 0:00:24]} 51. Rc7 {[%emt 0:00:51]} Re3 {[%emt 0:01:58]} 52. g4 {[%emt 0:01:52]} Re4 {[%emt 0:01:09]} 53. Rxc6 {[%emt 0:00:34]} Rc4 {[%emt 0:00:59]} 54. Ra6 {[%emt 0:00:15]} a4 {[%emt 0:02:30]} 55. Kf5 {[%emt 0:00:32]} Rxc3 {[%emt 0:01:38]} 56. Rxa4 {[%emt 0:01:05]} Rc5 {[%emt 0:04:12]} 57. Kg6 {[%emt 0:00:25]} Rc8 {[%emt 0:00:10]} 58. Ra7 {[%emt 0:00:57]} Kg8 {[%emt 0:05:30]} 59. Rh7 {[%emt 0:00:29]} Rc6 {[%emt 0:00:19]} 60. Rd7 {[%emt 0:00:20]} 1-0

[Event "Cape Verde Championship Final 2022"]
[Site "Praia"]
[Date "2022.12.09"]
[Round "3.3"]
[White "Monteiro, Antonio David Cabral"]
[Black "Barros, Luis"]
[Result "1-0"]
[ECO "B44"]
[WhiteElo "1778"]
[BlackElo "1666"]
[Annotator "NA COMBH"]
[PlyCount "91"]
[EventDate "2022.12.04"]
[EventType "tourn"]
[EventCountry "KAP"]
[SourceTitle "playchess.com"]
[Source "ChessBase"]
[SourceQuality "1"]
[TimeControl "40/5400+30:1800+30"]

1. e4 {[%emt 0:00:05]} c5 {[%emt 0:03:40]} 2. Nf3 {[%emt 0:00:07]} Nc6 {[%emt 0:00:18]} 3. d4 {[%emt 0:00:08]} cxd4 {[%emt 0:00:13]} 4. Nxd4 {[%emt 0:00:03]} e6 {[%emt 0:02:05]} 5. Be2 {[%emt 0:04:32]} g6 {[%emt 0:02:08]} 6. Be3 {[%emt 0:00:14]} Bg7 {[%emt 0:00:26]} 7. Nc3 {[%emt 0:00:28]} a6 {[%emt 0:00:10]} 8. f3 {[%emt 0:00:38]} Nge7 {[%emt 0:00:39]} 9. Qd2 {[%emt 0:00:13]} h6 {[%emt 0:01:22]} 10. O-O-O {[%emt 0:00:19]} b5 {[%emt 0:00:49]} 11. Nxc6 {[%emt 0:03:17]} Nxc6 {[%emt 0:01:04]} 12. Kb1 {[%emt 0:03:47]} Bb7 {[%emt 0:01:09]} 13. h4 {[%emt 0:01:33]} Rc8 {[%emt 0:00:22]} 14. h5 {[%emt 0:01:00]} g5 {[%emt 0:00:46]} 15. f4 {[%emt 0:01:10]} gxf4 {[%emt 0:04:40]} 16. Bxf4 {[%emt 0:05:16]} Ne5 {[%emt 0:00:15]} 17. Rhf1 {[%emt 0:04:24]} b4 {[%emt 0:05:03]} 18. Na4 {[%emt 0:00:23]} a5 {[%emt 0:04:35]} 19. Qd4 {[%emt 0:05:24]} Qc7 {[%emt 0:03:26]} 20. Rc1 {[%emt 0:03:52]} Rg8 {[%emt 0:01:12]} 21. Qf2 {[%emt 0:03:46]} f6 {[%emt 0:05:41]} 22. Bd3 {[%emt 0:01:59]} Qc6 {[%emt 0:01:48]} 23. Bxe5 {[%emt 0:00:47]} Rf8 {[%emt 0:00:43]} 24. b3 {[%emt 0:04:11]} fxe5 {[%emt 0:00:40]} 25. Qg3 {[%emt 0:00:46]} Bf6 {[%emt 0:01:44]} 26. Qg6+ {[%emt 0:02:53]} Ke7 {[%emt 0:00:37]} 27. Rf2 {[%emt 0:02:29]} Rf7 {[%emt 0:01:01]} 28. Rcf1 {[%emt 0:01:01]} Rcf8 {[%emt 0:00:41]} 29. Qxh6 {[%emt 0:01:09]} d5 {[%emt 0:02:13]} 30. exd5 {[%emt 0:01:51]} exd5 {[%emt 0:01:57]} 31. Bg6 {[%emt 0:03:38]} Rh8 {[%emt 0:00:32]} 32. Qe3 {[%emt 0:04:23]} Rff8 {[%emt 0:01:09]} 33. Qc5+ {[%emt 0:01:51]} Qxc5 {[%emt 0:06:04]} 34. Nxc5 {[%emt 0:00:14]} Bc6 {[%emt 0:00:59]} 35. g4 {[%emt 0:02:22]} e4 {[%emt 0:02:39]} 36. Rf5 {[%emt 0:00:24]} Bd4 {[%emt 0:01:50]} 37. Rxf8 {[%emt 0:38:23]} Rxf8 {[%emt 0:44:20]} 38. Rxf8 {[%emt 0:00:00]} Kxf8 {[%emt 0:00:00]} 39. Ne6+ {[%emt 0:00:00]} Ke7 {[%emt 0:00:00]} 40. Nxd4 {[%emt 0:00:00]} Bd7 {[%emt 0:00:00]} 41. Bf5 {[%emt 0:00:00]} Be8 {[%emt 0:00:00]} 42. Kc1 {[%emt 0:00:00]} Kf6 {[%emt 0:00:00]} 43. Kd2 {[%emt 0:00:00]} Ke5 {[%emt 0:00:00]} 44. Ke3 {[%emt 0:00:00]} Bf7 {[%emt 0:00:00]} 45. h6 {[%emt 0:00:00]} Kf6 {[%emt 0:00:00]} 46. g5+ {[%emt 0:00:00]} 1-0

[Event "Cape Verde Championship Final 2022"]
[Site "Praia"]
[Date "2022.12.10"]
[Round "3.4"]
[White "Rodriguez Guevara, Celia M."]
[Black "Moes Joaquim, Carlos"]
[Result "1-0"]
[ECO "B41"]
[WhiteElo "1803"]
[BlackElo "1448"]
[Annotator "NA RC COMBH"]
[PlyCount "87"]
[EventDate "2022.12.04"]
[EventType "tourn"]
[EventCountry "KAP"]
[SourceTitle "playchess.com"]
[Source "ChessBase"]
[SourceQuality "1"]
[TimeControl "40/5400+30:1800+30"]

{[%evp 8,84,25,32767,32767,32767,32767,32767,32767,32767,32767,32767,72,22,59,63,47,5,32767,17,7,25,29,17,39,-1,78,62,32767,32767,32767,32767,32767,32767,279,32767,32767,32767,32767,284,521,516,572,558,514,456,458,520,566,526,587,548,32767,502,718,32767,32767,32767,32767,32767,32767,32767,32767,32767,32767,32767,32767,32767,32767,32767,32767,32767,29995,204,29996,32767,32767,841,29998]} 1. e4 {[%emt 0:07:51]} c5 {[%emt 0:00:08]} 2. Nf3 {[%emt 0:00:12]} e6 {[%emt 0:00:13]} 3. d4 {[%emt 0:00:39]} cxd4 {[%emt 0:00:14]} 4. Nxd4 {[%emt 0:00:01]} a6 {[%emt 0:00:12]} 5. c4 {[%emt 0:02:24]} Qc7 {[%emt 0:01:12]} 6. Be2 {[%emt 0:03:29]} Bc5 {[%emt 0:01:08]} 7. O-O {[%emt 0:02:00]} Ne7 {[%emt 0:00:07]} 8. Nc3 {[%emt 0:06:24]} O-O {[%emt 0:00:33]} 9. a3 {[%emt 0:07:14]} d6 {[%emt 0:00:47]} 10. Bg5 {[%emt 0:08:43]} (10. b4 $16 Ba7 11. Be3) 10... Ng6 {[%emt 0:00:46]} (10... h6 $11 11. Be3 e5) 11. b4 {[%emt 0:06:21]} Ba7 {[%emt 0:00:13]} 12. Nf3 {[%emt 0:08:00]} (12. Rc1 $14) 12... Nd7 {[%emt 0:08:35]} 13. Rc1 {[%emt 0:14:58]} f6 {[%emt 0:01:10]} 14. Bd2 {[%emt 0:01:42]} Nde5 {[%emt 0:00:55]} 15. Qb3 {[%emt 0:02:26]} Kh8 {[%emt 0:00:11]} 16. h3 {[%emt 0:03:14]} (16. Nxe5 $14 {deserves consideration.} Nxe5 17. Kh1) 16... b6 {[%emt 0:05:44]} (16... Nxf3+ $11 17. Bxf3 Ne5) 17. Be3 {[%emt 0:03:00]} Bd7 {[%emt 0:03:39]} 18. Rfd1 {[%emt 0:01:29]} f5 {[%emt 0:08:09]} 19. exf5 {[%emt 0:02:33]} Rxf5 {[%emt 0:00:28]} 20. Nd4 {[%emt 0:06:01]} Rf4 {[%emt 0:11:07]} (20... Rff8 {was worth a try.} 21. b5 a5) 21. Bxf4 {[%emt 0:02:59]} Nxf4 {[%emt 0:00:11]} 22. Nf3 {[%emt 0:01:49]} Qc6 {[%emt 0:16:52]} 23. b5 {[%emt 0:03:02]} Qc7 $2 {[%emt 0:05:37]} (23... Nxe2+ 24. Nxe2 Nxf3+ 25. Qxf3 Qxf3 26. gxf3 Bb8) 24. Nxe5 {[%emt 0:02:24]} dxe5 {[%emt 0:00:07]} 25. Bf3 {[%emt 0:00:10]} Rf8 {[%emt 0:02:29]} 26. Ne4 {[%emt 0:00:03]} a5 {[%emt 0:02:12]} 27. a4 {[%emt 0:00:32]} Be8 {[%emt 0:03:25]} 28. Rd2 {[%emt 0:00:36]} Bb8 {[%emt 0:01:03]} 29. Rcd1 {[%emt 0:00:31]} Qf7 {[%emt 0:03:04]} 30. Kh2 {[%emt 0:00:54]} Qf5 {[%emt 0:04:56]} 31. Nd6 {[%emt 0:01:20]} Qg6 {[%emt 0:03:01]} 32. Qc2 {[%emt 0:00:48]} Qg5 {[%emt 0:02:02]} 33. Nxe8 {[%emt 0:01:02]} e4 {[%emt 0:00:24]} 34. Qxe4 {[%emt 0:00:19]} Nxg2+ {[%emt 0:03:17]} 35. Nd6 {[%emt 0:00:07]} Nh4 {[%emt 0:01:34]} 36. Bg4 {[%emt 0:02:11]} h5 {[%emt 0:01:06]} 37. Be2 {[%emt 0:00:48]} Rxf2+ {[%emt 0:03:03]} 38. Kh1 {[%emt 0:00:14]} Qg3 {[%emt 0:00:15]} 39. Nf7+ {[%emt 0:00:21]} Kg8 {[%emt 0:02:52]} 40. Rd8+ $18 {[%emt 0:01:06]} (40. Bxh5 $2 Qh2#) 40... Kxf7 {[%emt 0:00:16]} 41. R1d7+ {[%emt 0:30:13]} Kf6 {[%emt 0:31:54]} 42. Rf8+ {[%emt 0:00:21]} Kg5 {[%emt 0:01:51]} 43. Rxg7+ {[%emt 0:00:18]} Ng6 {[%emt 0:00:20]} 44. Rxg6# {[%emt 0:00:18]} 1-0

[Event "Cape Verde Championship Final 2022"]
[Site "Praia"]
[Date "2022.12.10"]
[Round "4.1"]
[White "Ortega Amarelle, Mariano"]
[Black "Moes Joaquim, Carlos"]
[Result "1-0"]
[ECO "C09"]
[WhiteElo "2471"]
[BlackElo "1448"]
[Annotator "TA"]
[PlyCount "73"]
[EventDate "2022.12.04"]
[EventType "tourn"]
[EventCountry "KAP"]
[SourceTitle "playchess.com"]
[Source "ChessBase"]
[SourceQuality "1"]
[TimeControl "40/5400+30:1800+30"]

{[%evp 19,73,-13,24,-2,35,19,37,37,53,58,118,118,117,101,126,123,147,133,129,147,151,154,152,160,264,248,252,250,257,261,272,260,278,240,482,393,362,345,341,329,331,322,395,401,395,380,456,440,440,423,641,634,783,594,569,561]} 1. e4 {[%emt 0:00:16]} e6 {[%emt 0:02:05]} 2. d4 {[%emt 0:00:13]} d5 {[%emt 0:00:11]} 3. Nd2 {[%emt 0:00:25]} c5 {[%emt 0:01:03]} 4. Ngf3 {[%emt 0:00:40]} Nc6 {[%emt 0:00:15]} 5. exd5 {[%emt 0:00:44]} exd5 {[%emt 0:00:25]} 6. Bb5 {[%emt 0:00:13]} cxd4 {[%emt 0:03:28]} 7. O-O {[%emt 0:00:10]} Bd6 {[%emt 0:00:41]} 8. Nxd4 {[%emt 0:00:56]} Nge7 {[%emt 0:00:49]} 9. N2f3 {[%emt 0:00:12]} O-O {[%emt 0:00:46]} 10. Bg5 {[%emt 0:01:27]} Qc7 {[%emt 0:01:11] 10...Qc7 is better than 10...f6.} (10... Qb6 {keeps more tension.} 11. Bd3 h6 12. Be3 Qxb2 13. Rb1 Qc3) 11. Bxe7 {[%emt 0:01:50] C09: French Tarrasch: 3...c5 4 exd5 exd5 5 Ngf3 Nc6.} Nxe7 {[%emt 0:01:11]} 12. Bd3 {[%emt 0:00:14] [#]} Bg4 $146 {[%emt 0:00:47][%cal Od6h2]} ({Predecessor:} 12... a6 13. c3 Bd7 14. Re1 Rad8 15. Ng5 Ng6 16. g3 {1-0 (16) Klundt,K (2385)-Binder,T Nuremberg 1987}) 13. Nb5 {[%emt 0:05:53] Pair of Knights! White is slightly better.} Qd7 {[%emt 0:07:43]} 14. Nxd6 {[%emt 0:01:02][%cal Of3e5]} Qxd6 {[%emt 0:00:13] [#]} ({Black should try} 14... Bxf3 $1 $14 15. Qxf3 Qxd6) 15. Bxh7+ $1 $16 {[%emt 0:03:24][%mdl 512]} Kh8 {[%emt 0:00:43][%cal Og4f3][%mdl 64] ...Bxf3! is the strong threat.} 16. Bd3 {[%emt 0:00:15]} Qf6 {[%emt 0:01:03][%cal Oe7c6]} 17. Be2 {[%emt 0:07:02]} g6 {[%emt 0:03:33]} 18. Qd4 {[%emt 0:00:33]} Qxd4 {[%emt 0:00:32]} 19. Nxd4 {[%emt 0:00:07]} Be6 {[%emt 0:00:21]} 20. Rfe1 {[%emt 0:00:28] White is more active.} Nc6 {[%emt 0:01:03]} 21. Rad1 {[%emt 0:00:16]} Kg7 {[%emt 0:00:57] [#]} (21... Rad8 $16 {is a better defense.} 22. f4 Nxd4 23. Rxd4 Rd6) 22. Nxe6+ $1 $18 {[%emt 0:01:11]} fxe6 {[%emt 0:00:41]} 23. Bg4 {[%emt 0:00:29]} d4 {[%emt 0:05:24]} 24. Bxe6 {[%emt 0:00:15]} Rad8 {[%emt 0:00:41]} 25. Bc4 {[%emt 0:00:50]} a6 {[%emt 0:01:16]} 26. Re6 {[%emt 0:00:37][%cal Oc4a6]} Nb4 $2 {[%emt 0:03:19]} (26... Rf6 {keeps fighting.} 27. Rde1 Rd6 28. Rxd6 Rxd6) 27. a3 {[%emt 0:02:33]} d3 {[%emt 0:03:44]} 28. cxd3 {[%emt 0:04:40]} ({Weaker is} 28. axb4 dxc2 29. Rc1 (29. Re7+ Kf6 $11) 29... Rd1+ 30. Re1 Rxe1+ 31. Rxe1 Rc8 $16) 28... b5 {[%emt 0:08:12]} 29. Bxb5 {[%emt 0:00:11]} ({Resist} 29. axb4 bxc4 30. Rxa6 Rd4 $18) 29... axb5 {[%emt 0:00:38]} 30. axb4 {[%emt 0:00:07][%mdl 4096] Endgame KRR-KRR} Rd5 {[%emt 0:00:08]} 31. g3 {[%emt 0:03:24]} Rd4 {[%emt 0:03:20]} 32. Re4 {[%emt 0:00:09]} Rd5 {[%emt 0:00:13]} 33. Kf1 {[%emt 0:00:36] White is clearly winning.} g5 {[%emt 0:00:11]} 34. h4 {[%emt 0:00:21][%cal Bh2h4,Bh4g5][%mdl 32]} Kg6 {[%emt 0:02:06]} (34... gxh4 $142 35. Rxh4 Re8) 35. Rg4 {[%emt 0:00:20]} Rff5 {[%emt 0:00:08]} 36. Rxg5+ {[%emt 0:00:16]} Rxg5 {[%emt 0:49:29]} 37. hxg5 {[%emt 0:00:30] White took control after the opening.   Weighted Error Value: White=0.15 (very precise) /Black=0.43} 1-0

[Event "Cape Verde Championship Final 2022"]
[Site "Praia"]
[Date "2022.12.10"]
[Round "4.2"]
[White "Barros, Luis"]
[Black "Rodriguez Guevara, Celia M."]
[Result "0-1"]
[ECO "B01"]
[WhiteElo "1666"]
[BlackElo "1803"]
[Annotator "NA RC COMBH"]
[PlyCount "132"]
[EventDate "2022.12.04"]
[EventType "tourn"]
[EventCountry "KAP"]
[SourceTitle "playchess.com"]
[Source "ChessBase"]
[SourceQuality "1"]
[TimeControl "40/5400+30:1800+30"]

1. e4 {[%emt 0:00:47]} d5 {[%emt 0:00:14]} 2. exd5 {[%emt 0:00:23]} Qxd5 {[%emt 0:00:09]} 3. Nc3 {[%emt 0:01:00]} Qa5 {[%emt 0:00:07]} 4. Nf3 {[%emt 0:00:48]} Nf6 {[%emt 0:00:27]} 5. d4 {[%emt 0:01:00]} Bf5 {[%emt 0:00:29]} 6. Bc4 {[%emt 0:00:28]} c6 {[%emt 0:00:49]} 7. Bd2 {[%emt 0:01:20]} Qd8 {[%emt 0:01:10]} 8. Ne5 {[%emt 0:00:34]} e6 {[%emt 0:00:56]} 9. h3 {[%emt 0:01:57]} Qxd4 {[%emt 0:01:13]} 10. Qe2 {[%emt 0:01:57]} Nbd7 {[%emt 0:17:05]} 11. Nxd7 {[%emt 0:01:07]} Nxd7 {[%emt 0:01:00]} 12. O-O-O {[%emt 0:00:23]} Bc5 $2 {[%emt 0:12:01]} (12... Qe5 $1 $15 {stays ahead.}) 13. g4 {[%emt 0:01:16]} Bg6 {[%emt 0:05:49]} 14. Bxe6 {[%emt 0:00:28]} O-O-O {[%emt 0:04:48]} 15. Bg5 {[%emt 0:06:23]} Qxf2 {[%emt 0:08:11]} 16. Bxd8 {[%emt 0:00:29]} Qe3+ {[%emt 0:05:04]} 17. Qxe3 {[%emt 0:00:40]} Bxe3+ {[%emt 0:00:03]} 18. Kb1 {[%emt 0:00:50]} Rxd8 {[%emt 0:06:09]} 19. Rhe1 {[%emt 0:06:05]} Bg5 {[%emt 0:04:24]} 20. Bxd7+ {[%emt 0:02:17]} Rxd7 {[%emt 0:00:03]} 21. Rxd7 {[%emt 0:00:30]} (21. Re8+ $142 Kc7 22. Rxd7+ Kxd7 23. Rb8) 21... Kxd7 {[%emt 0:00:03]} 22. Ne4 {[%emt 0:00:33]} Be7 {[%emt 0:02:12]} 23. a3 {[%emt 0:00:36]} f5 {[%emt 0:02:01]} 24. gxf5 {[%emt 0:02:00]} (24. Ng3 $16) 24... Bxf5 {[%emt 0:00:09]} 25. Nf2 {[%emt 0:00:56]} Bh4 {[%emt 0:03:03]} 26. Rf1 {[%emt 0:02:06]} Bg6 {[%emt 0:05:08]} (26... g6 $11) 27. Ng4 {[%emt 0:00:32]} Bg3 {[%emt 0:02:02]} (27... Ke6 $11 {is more appropriate.}) 28. Rf3 {[%emt 0:01:27]} Bd6 {[%emt 0:01:27]} 29. b3 {[%emt 0:01:40]} Kc7 {[%emt 0:12:33]} 30. Kb2 {[%emt 0:03:23]} a5 {[%emt 0:01:04]} 31. c3 {[%emt 0:00:49]} b5 {[%emt 0:00:48]} 32. Re3 {[%emt 0:00:32]} Bc5 {[%emt 0:04:17]} 33. Re1 {[%emt 0:01:05]} Bd6 {[%emt 0:00:21]} 34. b4 {[%emt 0:01:26]} a4 {[%emt 0:00:12]} 35. c4 {[%emt 0:02:53]} bxc4 {[%emt 0:00:18]} 36. Kc3 {[%emt 0:00:31]} Bf7 {[%emt 0:00:35]} 37. Ne5 {[%emt 0:00:46]} Be6 {[%emt 0:00:23]} 38. h4 $2 {[%emt 0:02:06]} ({White should play} 38. Nxc4 $18 Kd7 39. Nb6+ Ke7 40. Nxa4) 38... Be7 {[%emt 0:00:58] [#]} 39. Nxc4 {[%emt 0:02:08]} (39. Nxc6 $1 $14 {was preferrable.} Bf6+ 40. Nd4) 39... Bf6+ {[%emt 0:00:09]} (39... Bxh4 $2 40. Rxe6 Kd7 41. Re2 $18) 40. Kd3 $1 {[%emt 0:00:59]} Bf5+ {[%emt 0:01:41]} (40... Bxh4 $2 41. Rxe6 Kd7 42. Re5 $18) 41. Kd2 {[%emt 0:33:41]} Bxh4 $11 {[%emt 0:03:06]} 42. Rg1 {[%emt 0:00:00]} Bf6 {[%emt 0:00:51]} 43. Kc1 {[%emt 0:00:00]} Bd3 {[%emt 0:05:12]} 44. Nb2 {[%emt 0:00:00]} Bb5 {[%emt 0:00:16]} 45. Nd1 {[%emt 0:00:00]} h5 {[%emt 0:04:20]} 46. Kd2 {[%emt 0:00:00]} Bc4 {[%emt 0:01:48]} 47. Nc3 {[%emt 0:00:00]} Bb5 {[%emt 0:04:27]} 48. Nxb5+ {[%emt 0:00:00]} cxb5 {[%emt 0:00:05]} 49. Rc1+ {[%emt 0:00:00]} Kb6 {[%emt 0:00:19]} 50. Ke2 {[%emt 0:00:00]} Bb2 {[%emt 0:00:48]} 51. Rg1 {[%emt 0:00:00]} h4 {[%emt 0:01:50]} 52. Rg6+ {[%emt 0:00:00]} Bf6 {[%emt 0:01:44]} 53. Kd3 {[%emt 0:00:00]} Kc7 {[%emt 0:12:39]} 54. Rg2 {[%emt 0:00:00]} Kd6 {[%emt 0:00:00]} 55. Ke4 {[%emt 0:00:00]} Ke6 {[%emt 0:00:00]} 56. Rc2 {[%emt 0:00:00]} Kd6 {[%emt 0:00:00]} 57. Rd2+ {[%emt 0:00:00]} Ke6 {[%emt 0:00:00]} 58. Rd3 {[%emt 0:00:00]} Be5 {[%emt 0:00:13]} 59. Re3 {[%emt 0:00:00]} g5 {[%emt 0:00:47]} 60. Kf3 {[%emt 0:00:09]} Kf5 {[%emt 0:00:12]} 61. Rd3 {[%emt 0:03:44]} g4+ {[%emt 0:00:20]} 62. Kf2 {[%emt 0:00:51]} h3 {[%emt 0:00:08]} 63. Rd5 {[%emt 0:00:16]} g3+ {[%emt 0:00:21]} 64. Kg1 {[%emt 0:01:12]} Ke4 {[%emt 0:00:26]} 65. Rd2 {[%emt 0:04:37]} Bd4+ {[%emt 0:00:17]} 66. Kh1 {[%emt 0:08:33]} g2+ {[%emt 0:00:11]} 0-1